[Event "*** Titled Tuesday Blitz"]
[Site "Chess.com"]
[Date "2018.12.04"]
[Round "2"]
[White "Yeytruyol"]
[Black "BasilSmash"]
[Result "1-0"]
[WhiteElo "2458"]
[BlackElo "2390"]
[TimeControl "180+2"]
[EndTime "13:23:10 PST"]
[Termination "Yeytruyol won by resignation"]

1. e4 {[%clk 0:03:01.9]} 1... c6 {[%clk 0:03:00.5]} 2. d4 {[%clk 0:03:01.7]}
2... d5 {[%clk 0:03:02.4]} 3. exd5 {[%clk 0:03:01.9]} 3... cxd5 {[%clk
0:03:03.1]} 4. Bd3 {[%clk 0:03:02.1]} 4... Nc6 {[%clk 0:03:03.7]} 5. c3 {[%clk
0:03:02.3]} 5... Qc7 {[%clk 0:03:05.3]} 6. Na3 {[%clk 0:02:59.6]} 6... a6 {[%clk
0:03:05.1]} 7. Nc2 {[%clk 0:02:55.4]} 7... Nf6 {[%clk 0:03:01.7]} 8. Ne2 {[%clk
0:02:42.3]} 8... Bg4 {[%clk 0:03:00.9]} 9. f3 {[%clk 0:02:42.5]} 9... Bd7 {[%clk
0:02:58.6]} 10. Bf4 {[%clk 0:02:37.6]} 10... e5 {[%clk 0:02:59]} 11. dxe5 {[%clk
0:02:32.7]} 11... Nxe5 {[%clk 0:03:00.9]} 12. Bxe5 {[%clk 0:02:31.8]} 12... Qxe5
{[%clk 0:03:01.3]} 13. Qd2 {[%clk 0:02:32.7]} 13... Bc5 {[%clk 0:02:55.5]} 14.
O-O-O {[%clk 0:02:28.5]} 14... O-O {[%clk 0:02:55.7]} 15. Ned4 {[%clk
0:02:24.7]} 15... Rac8 {[%clk 0:02:54.1]} 16. Kb1 {[%clk 0:02:17.6]} 16... b5
{[%clk 0:02:44.7]} 17. g4 {[%clk 0:02:15.7]} 17... Rb8 {[%clk 0:02:32.3]} 18. a3
{[%clk 0:02:09.3]} 18... a5 {[%clk 0:02:30.5]} 19. Rde1 {[%clk 0:02:05.4]} 19...
Qd6 {[%clk 0:02:29.2]} 20. g5 {[%clk 0:01:42.3]} 20... Nh5 {[%clk 0:02:29.1]}
21. Nb3 {[%clk 0:01:42.5]} 21... Bb6 {[%clk 0:02:20.1]} 22. Be4 {[%clk
0:01:07.5]} 22... Be6 {[%clk 0:02:10.1]} 23. Rd1 {[%clk 0:01:03.3]} 23... Rfd8
{[%clk 0:02:02.8]} 24. Rhe1 {[%clk 0:00:54.2]} 24... Qf4 {[%clk 0:01:56.5]} 25.
Bd3 {[%clk 0:00:49.9]} 25... Qxd2 {[%clk 0:01:45.5]} 26. Rxd2 {[%clk 0:00:51.8]}
26... Bc7 {[%clk 0:01:23.2]} 27. Nc5 {[%clk 0:00:50]} 27... Nf4 {[%clk
0:01:15.4]} 28. Na6 {[%clk 0:00:45.5]} 28... Rbc8 {[%clk 0:01:03.4]} 29. Nxc7
{[%clk 0:00:43]} 29... Nxd3 {[%clk 0:00:45.1]} 30. Nxe6 {[%clk 0:00:42.6]} 30...
Nxe1 {[%clk 0:00:44.8]} 31. Nxd8 {[%clk 0:00:38.9]} 31... Nxc2 {[%clk
0:00:45.6]} 32. Rxd5 {[%clk 0:00:32.1]} 32... Ne3 {[%clk 0:00:40.7]} 33. Rd7
{[%clk 0:00:31.7]} 33... Nc4 {[%clk 0:00:22]} 34. Nxf7 {[%clk 0:00:32.1]} 34...
Rf8 {[%clk 0:00:19.2]} 35. Nd6 {[%clk 0:00:31.5]} 35... Rxf3 {[%clk 0:00:16.7]}
36. Rd8+ {[%clk 0:00:29.8]} 36... Rf8 {[%clk 0:00:16.9]} 37. Rxf8+ {[%clk
0:00:30]} 37... Kxf8 {[%clk 0:00:18.8]} 38. Nxb5 {[%clk 0:00:27.9]} 38... Kf7
{[%clk 0:00:19.7]} 39. Kc2 {[%clk 0:00:26.3]} 39... Kg6 {[%clk 0:00:20.1]} 40.
Kb3 {[%clk 0:00:19.7]} 40... Nb6 {[%clk 0:00:20]} 41. c4 {[%clk 0:00:20.4]}
41... Kxg5 {[%clk 0:00:20.7]} 42. c5 {[%clk 0:00:21.8]} 42... Nc8 {[%clk
0:00:17.8]} 43. Kc4 {[%clk 0:00:23.3]} 43... Kf6 {[%clk 0:00:10.8]} 44. Nd6
{[%clk 0:00:24.9]} 44... Nxd6+ {[%clk 0:00:10.3]} 45. cxd6 {[%clk 0:00:26.8]}
45... Ke6 {[%clk 0:00:12.2]} 46. Kc5 {[%clk 0:00:28]} 46... Kd7 {[%clk
0:00:13.4]} 47. b4 {[%clk 0:00:29.4]} 47... axb4 {[%clk 0:00:14.7]} 48. axb4
{[%clk 0:00:30.8]} 48... g5 {[%clk 0:00:16.6]} 49. b5 {[%clk 0:00:32.2]} 49...
g4 {[%clk 0:00:17.8]} 50. b6 {[%clk 0:00:33.8]} 50... h5 {[%clk 0:00:19.1]} 51.
b7 {[%clk 0:00:34.7]} 1-0

[Event "*** Titled Tuesday Blitz"]
[Site "Chess.com"]
[Date "2018.12.04"]
[Round "2"]
[White "SantoBlue"]
[Black "bubacik"]
[Result "1-0"]
[WhiteElo "2712"]
[BlackElo "2660"]
[TimeControl "180+2"]
[EndTime "13:23:13 PST"]
[Termination "SantoBlue won by resignation"]

1. Nf3 {[%clk 0:03:01.9]} 1... Nf6 {[%clk 0:02:59.4]} 2. g3 {[%clk 0:03:00.7]}
2... d5 {[%clk 0:02:52.1]} 3. Bg2 {[%clk 0:03:01.4]} 3... c6 {[%clk 0:02:53.5]}
4. O-O {[%clk 0:03:01.8]} 4... Bg4 {[%clk 0:02:55.1]} 5. d3 {[%clk 0:03:00.1]}
5... e6 {[%clk 0:02:56.3]} 6. c4 {[%clk 0:02:56.8]} 6... Nbd7 {[%clk 0:02:54.2]}
7. Qb3 {[%clk 0:02:44.3]} 7... Qb6 {[%clk 0:02:47.5]} 8. Qc2 {[%clk 0:02:41.8]}
8... Bd6 {[%clk 0:02:22.4]} 9. Nc3 {[%clk 0:02:36.3]} 9... O-O {[%clk
0:02:20.6]} 10. e4 {[%clk 0:02:30.1]} 10... dxe4 {[%clk 0:01:11.7]} 11. dxe4
{[%clk 0:02:26.9]} 11... Bxf3 {[%clk 0:01:13]} 12. Bxf3 {[%clk 0:02:27.3]} 12...
Ne5 {[%clk 0:01:13.7]} 13. Be2 {[%clk 0:02:23]} 13... Rfd8 {[%clk 0:01:07.7]}
14. Be3 {[%clk 0:02:21.3]} 14... Qc7 {[%clk 0:01:06.1]} 15. c5 {[%clk
0:02:17.9]} 15... Be7 {[%clk 0:00:58.7]} 16. h3 {[%clk 0:02:19]} 16... Ned7
{[%clk 0:00:54.2]} 17. Na4 {[%clk 0:02:09.2]} 17... e5 {[%clk 0:00:55.3]} 18. h4
{[%clk 0:02:05.4]} 18... Nf8 {[%clk 0:00:55.7]} 19. Bc4 {[%clk 0:02:03.8]} 19...
b5 {[%clk 0:00:56.6]} 20. cxb6 {[%clk 0:02:04.6]} 20... axb6 {[%clk 0:00:46.9]}
21. Bxb6 {[%clk 0:02:06.5]} 21... Qd7 {[%clk 0:00:39.9]} 22. Bxd8 {[%clk
0:02:04.7]} 22... Bxd8 {[%clk 0:00:41.8]} 23. Rfd1 {[%clk 0:01:55.4]} 23... Qg4
{[%clk 0:00:42.8]} 24. Nc3 {[%clk 0:01:52.7]} 24... Bb6 {[%clk 0:00:43]} 25. Kg2
{[%clk 0:01:54.3]} 25... Ng6 {[%clk 0:00:42.2]} 26. Bxf7+ {[%clk 0:01:41.8]}
26... Kxf7 {[%clk 0:00:13.8]} 27. Qb3+ {[%clk 0:01:42.7]} 27... Kf8 {[%clk
0:00:12.2]} 28. Qxb6 {[%clk 0:01:42.8]} 28... Nf4+ {[%clk 0:00:12.2]} 29. Kg1
{[%clk 0:01:13.1]} 29... Nh3+ {[%clk 0:00:12.9]} 30. Kf1 {[%clk 0:01:10.8]}
30... Nh5 {[%clk 0:00:12.9]} 31. Qc5+ {[%clk 0:01:01.5]} 31... Kg8 {[%clk
0:00:13.4]} 32. Ke1 {[%clk 0:00:32.1]} 32... Rf8 {[%clk 0:00:14.1]} 33. Qc4+
{[%clk 0:00:26.9]} 33... Kh8 {[%clk 0:00:15]} 34. Qe2 {[%clk 0:00:27.1]} 34...
Qg6 {[%clk 0:00:15.2]} 35. Rd7 {[%clk 0:00:20.6]} 35... Nxf2 {[%clk 0:00:13.7]}
36. Qxf2 {[%clk 0:00:19.9]} 36... Qe8 {[%clk 0:00:13.1]} 37. Qc5 {[%clk
0:00:11.1]} 37... Nxg3 {[%clk 0:00:12.8]} 38. Qe7 {[%clk 0:00:10.4]} 38... Qb8
{[%clk 0:00:05.9]} 39. Rb7 {[%clk 0:00:07.8]} 39... Rf1+ {[%clk 0:00:06.3]} 40.
Kd2 {[%clk 0:00:08.4]} 40... Nxe4+ {[%clk 0:00:07.4]} 41. Nxe4 {[%clk
0:00:08.7]} 1-0

[Event "*** Titled Tuesday Blitz"]
[Site "Chess.com"]
[Date "2018.12.04"]
[Round "2"]
[White "eldur16"]
[Black "Micki-taryan"]
[Result "1-0"]
[WhiteElo "2637"]
[BlackElo "2897"]
[TimeControl "180+2"]
[EndTime "13:23:16 PST"]
[Termination "eldur16 won by resignation"]

1. e4 {[%clk 0:03:01.9]} 1... c5 {[%clk 0:02:59.9]} 2. Ne2 {[%clk 0:03:02.1]}
2... Nf6 {[%clk 0:03:01.4]} 3. e5 {[%clk 0:03:01.4]} 3... Nd5 {[%clk 0:03:02.5]}
4. d4 {[%clk 0:03:01.4]} 4... cxd4 {[%clk 0:03:03.1]} 5. Qxd4 {[%clk 0:03:00]}
5... Nc7 {[%clk 0:03:03.9]} 6. Nbc3 {[%clk 0:02:58.8]} 6... Nc6 {[%clk
0:03:05.8]} 7. Qe4 {[%clk 0:02:55.3]} 7... g6 {[%clk 0:02:58.4]} 8. Be3 {[%clk
0:02:49]} 8... Bg7 {[%clk 0:02:58.2]} 9. f4 {[%clk 0:02:47.6]} 9... d5 {[%clk
0:02:58.8]} 10. exd6 {[%clk 0:02:43.6]} 10... Qxd6 {[%clk 0:02:59.7]} 11. Rd1
{[%clk 0:02:41.9]} 11... Qb4 {[%clk 0:02:58.4]} 12. Qxb4 {[%clk 0:02:25]} 12...
Nxb4 {[%clk 0:03:00.3]} 13. Rd2 {[%clk 0:02:21.3]} 13... Bf5 {[%clk 0:03:00]}
14. Nd4 {[%clk 0:02:16.1]} 14... Bxd4 {[%clk 0:03:00.5]} 15. Bxd4 {[%clk
0:02:16.3]} 15... O-O {[%clk 0:03:01.5]} 16. Be5 {[%clk 0:02:13.3]} 16... Ne6
{[%clk 0:03:01.3]} 17. Bc4 {[%clk 0:02:10]} 17... Nxc2+ {[%clk 0:02:58.1]} 18.
Kf2 {[%clk 0:02:10.7]} 18... Nb4 {[%clk 0:02:53.3]} 19. h3 {[%clk 0:02:06.4]}
19... Nc5 {[%clk 0:02:54.2]} 20. Ke3 {[%clk 0:02:02.6]} 20... Be6 {[%clk
0:02:51.4]} 21. Bxe6 {[%clk 0:01:59]} 21... Nxe6 {[%clk 0:02:53.3]} 22. Ne4
{[%clk 0:01:48.5]} 22... Rac8 {[%clk 0:02:48.4]} 23. a3 {[%clk 0:01:46.8]} 23...
Nc6 {[%clk 0:02:48]} 24. Bc3 {[%clk 0:01:46.8]} 24... Rfd8 {[%clk 0:02:48.9]}
25. g4 {[%clk 0:01:44.8]} 25... Rxd2 {[%clk 0:02:49.2]} 26. Nxd2 {[%clk
0:01:45.2]} 26... Nc7 {[%clk 0:02:48.8]} 27. Ke4 {[%clk 0:01:39.7]} 27... Rd8
{[%clk 0:02:48.6]} 28. Nf3 {[%clk 0:01:37.3]} 28... Nd5 {[%clk 0:02:46.8]} 29.
Rc1 {[%clk 0:01:36.9]} 29... a6 {[%clk 0:02:41]} 30. Be1 {[%clk 0:01:29.5]}
30... Nf6+ {[%clk 0:02:40]} 31. Ke3 {[%clk 0:01:29.9]} 31... Nd5+ {[%clk
0:02:41.9]} 32. Ke4 {[%clk 0:01:30.6]} 32... f6 {[%clk 0:02:43.5]} 33. f5 {[%clk
0:01:27.8]} 33... Kf7 {[%clk 0:02:43.8]} 34. Bf2 {[%clk 0:01:19.5]} 34... Nc7
{[%clk 0:02:37]} 35. Bb6 {[%clk 0:01:18.6]} 35... Rd7 {[%clk 0:02:35.5]} 36.
Bxc7 {[%clk 0:01:18.7]} 36... Rxc7 {[%clk 0:02:37.4]} 37. Nd4 {[%clk 0:01:19.3]}
37... Rc8 {[%clk 0:02:35.1]} 38. Ne6 {[%clk 0:01:18.1]} 38... Na7 {[%clk
0:02:30.9]} 39. Rxc8 {[%clk 0:01:16]} 39... Nxc8 {[%clk 0:02:31.9]} 40. Nd8+
{[%clk 0:01:16.8]} 40... Ke8 {[%clk 0:02:12.3]} 41. Nxb7 {[%clk 0:01:17.7]}
41... gxf5+ {[%clk 0:02:10.6]} 42. gxf5 {[%clk 0:01:17.9]} 42... h5 {[%clk
0:02:10.1]} 43. b4 {[%clk 0:01:17.9]} 43... Kf7 {[%clk 0:02:01.4]} 44. Nc5
{[%clk 0:01:15]} 44... Nd6+ {[%clk 0:02:02.6]} 45. Kf4 {[%clk 0:01:15.6]} 45...
Nc4 {[%clk 0:02:02.8]} 46. a4 {[%clk 0:01:13.2]} 46... a5 {[%clk 0:02:04.2]} 47.
b5 {[%clk 0:01:06.8]} 47... Nb6 {[%clk 0:02:04]} 48. Ke4 {[%clk 0:01:01.4]}
48... Ke8 {[%clk 0:02:04.4]} 49. Kd4 {[%clk 0:00:55.5]} 49... Kd8 {[%clk
0:02:05.7]} 50. Nb7+ {[%clk 0:00:55.6]} 50... Kc7 {[%clk 0:02:07.2]} 51. Nxa5
{[%clk 0:00:56.5]} 51... Nxa4 {[%clk 0:02:08.8]} 52. Nc4 {[%clk 0:00:57.3]}
52... Kd7 {[%clk 0:02:06]} 53. h4 {[%clk 0:00:51.4]} 53... e6 {[%clk 0:01:56.8]}
54. b6 {[%clk 0:00:47.5]} 54... exf5 {[%clk 0:01:50]} 55. Ke3 {[%clk 0:00:47.4]}
55... Nc5 {[%clk 0:01:45.7]} 56. Kf4 {[%clk 0:00:46.2]} 56... Ke6 {[%clk
0:01:45.6]} 57. Na5 {[%clk 0:00:46.6]} 57... Nd3+ {[%clk 0:01:42.7]} 58. Ke3
{[%clk 0:00:46.1]} 58... Ne5 {[%clk 0:01:21.9]} 59. b7 {[%clk 0:00:45.7]} 59...
Nd7 {[%clk 0:01:22.5]} 60. Nc6 {[%clk 0:00:46.5]} 60... Kd6 {[%clk 0:01:08]} 61.
b8=Q+ {[%clk 0:00:46]} 61... Nxb8 {[%clk 0:01:09.5]} 62. Nxb8 {[%clk 0:00:46.8]}
62... Ke5 {[%clk 0:01:06.1]} 63. Nd7+ {[%clk 0:00:41]} 63... Kd6 {[%clk
0:01:07.4]} 64. Nxf6 {[%clk 0:00:40.7]} 64... Ke5 {[%clk 0:01:08.9]} 65. Nxh5
{[%clk 0:00:41.4]} 65... f4+ {[%clk 0:01:10.3]} 66. Nxf4 {[%clk 0:00:42.3]}
66... Kf5 {[%clk 0:01:12.2]} 67. Kf3 {[%clk 0:00:43]} 1-0

[Event "*** Titled Tuesday Blitz"]
[Site "Chess.com"]
[Date "2018.12.04"]
[Round "2"]
[White "Frolik67"]
[Black "severomorskij"]
[Result "1-0"]
[WhiteElo "2661"]
[BlackElo "2734"]
[TimeControl "180+2"]
[EndTime "13:23:19 PST"]
[Termination "Frolik67 won on time"]

1. e4 {[%clk 0:03:01.9]} 1... c5 {[%clk 0:03:00.4]} 2. Nf3 {[%clk 0:03:02.7]}
2... Nc6 {[%clk 0:03:01.5]} 3. Bb5 {[%clk 0:03:03.2]} 3... d6 {[%clk 0:03:01.7]}
4. O-O {[%clk 0:03:03]} 4... Bd7 {[%clk 0:03:02.2]} 5. c3 {[%clk 0:03:03.2]}
5... Nf6 {[%clk 0:03:01.6]} 6. Re1 {[%clk 0:03:04.1]} 6... a6 {[%clk 0:03:02.4]}
7. Ba4 {[%clk 0:03:04.4]} 7... b5 {[%clk 0:03:02.4]} 8. Bc2 {[%clk 0:03:05.9]}
8... Bg4 {[%clk 0:03:03.6]} 9. h3 {[%clk 0:03:06.5]} 9... Bxf3 {[%clk 0:03:02]}
10. Qxf3 {[%clk 0:03:08.4]} 10... g6 {[%clk 0:03:00.4]} 11. d3 {[%clk
0:03:07.7]} 11... Bg7 {[%clk 0:03:00.5]} 12. Bg5 {[%clk 0:03:05.5]} 12... O-O
{[%clk 0:03:00.8]} 13. Nd2 {[%clk 0:03:04.4]} 13... Nd7 {[%clk 0:02:59]} 14. Bb3
{[%clk 0:02:49.9]} 14... b4 {[%clk 0:02:55.7]} 15. Rac1 {[%clk 0:02:48]} 15...
Rb8 {[%clk 0:02:48.1]} 16. Bd5 {[%clk 0:02:37.8]} 16... h6 {[%clk 0:02:16.6]}
17. Bf4 {[%clk 0:02:24.9]} 17... Nde5 {[%clk 0:01:58.2]} 18. Qe3 {[%clk
0:02:21.5]} 18... Kh7 {[%clk 0:01:52.7]} 19. d4 {[%clk 0:01:57.8]} 19... bxc3
{[%clk 0:01:50.4]} 20. bxc3 {[%clk 0:01:57.2]} 20... cxd4 {[%clk 0:01:51.4]} 21.
cxd4 {[%clk 0:01:59.1]} 21... Nxd4 {[%clk 0:01:51.7]} 22. Qxd4 {[%clk
0:01:59.5]} 22... Nf3+ {[%clk 0:01:52]} 23. Nxf3 {[%clk 0:02:00.5]} 23... Bxd4
{[%clk 0:01:53.5]} 24. Nxd4 {[%clk 0:02:02.4]} 24... Rb2 {[%clk 0:01:52.4]} 25.
Bb3 {[%clk 0:01:55.1]} 25... e5 {[%clk 0:01:21.5]} 26. Nc6 {[%clk 0:01:52.9]}
26... Qd7 {[%clk 0:01:17.1]} 27. Be3 {[%clk 0:01:50.5]} 27... f5 {[%clk
0:01:18]} 28. Red1 {[%clk 0:01:37]} 28... fxe4 {[%clk 0:00:24.4]} 29. Nxe5
{[%clk 0:01:28.4]} 29... Qe7 {[%clk 0:00:16.3]} 30. Nc4 {[%clk 0:01:20.8]} 30...
Rxb3 {[%clk 0:00:16.9]} 31. axb3 {[%clk 0:01:21.6]} 31... Rd8 {[%clk 0:00:16.6]}
32. Rd5 {[%clk 0:01:20.7]} 32... g5 {[%clk 0:00:12.1]} 33. Rcd1 {[%clk
0:01:21.7]} 33... Qb7 {[%clk 0:00:13.1]} 34. Na5 {[%clk 0:01:06.6]} 34... Qc7
{[%clk 0:00:11.6]} 35. Nc4 {[%clk 0:01:05.3]} 35... Qb7 {[%clk 0:00:12.5]} 36.
Na5 {[%clk 0:01:01.6]} 36... Qc7 {[%clk 0:00:13.6]} 37. Rc1 {[%clk 0:01:03.2]}
37... Qf7 {[%clk 0:00:09.9]} 38. Rd4 {[%clk 0:00:56.2]} 38... d5 {[%clk
0:00:06.7]} 39. Rc6 {[%clk 0:00:57]} 39... Qh5 {[%clk 0:00:03.2]} 40. Rxa6
{[%clk 0:00:51.6]} 40... Qe2 {[%clk 0:00:03.8]} 41. Ra7+ {[%clk 0:00:51.1]}
41... Kg6 {[%clk 0:00:05]} 42. Kh2 {[%clk 0:00:36.5]} 42... g4 {[%clk
0:00:05.3]} 43. Nc6 {[%clk 0:00:32.4]} 43... g3+ {[%clk 0:00:05.4]} 44. Kxg3
{[%clk 0:00:31.8]} 44... Rd6 {[%clk 0:00:06.7]} 45. Ne5+ {[%clk 0:00:27.4]}
45... Kh5 {[%clk 0:00:05.5]} 46. Kh2 {[%clk 0:00:26.8]} 46... Rf6 {[%clk
0:00:04]} 47. Rxd5 {[%clk 0:00:22.8]} 47... Rxf2 {[%clk 0:00:02.8]} 48. Bxf2
{[%clk 0:00:19.4]} 1-0

[Event "*** Titled Tuesday Blitz"]
[Site "Chess.com"]
[Date "2018.12.04"]
[Round "2"]
[White "gmjlh"]
[Black "GMG"]
[Result "1/2-1/2"]
[WhiteElo "2676"]
[BlackElo "2673"]
[TimeControl "180+2"]
[EndTime "13:23:19 PST"]
[Termination "Game drawn by agreement"]

1. d4 {[%clk 0:03:01.9]} 1... d5 {[%clk 0:02:59.5]} 2. c4 {[%clk 0:03:02.7]}
2... e6 {[%clk 0:03:01]} 3. Nf3 {[%clk 0:03:03.5]} 3... c6 {[%clk 0:03:01.8]} 4.
e3 {[%clk 0:03:03.9]} 4... Bd6 {[%clk 0:03:01.1]} 5. Bd3 {[%clk 0:03:04.5]} 5...
f5 {[%clk 0:03:01.8]} 6. O-O {[%clk 0:03:04.8]} 6... Nf6 {[%clk 0:02:58.2]} 7.
b3 {[%clk 0:03:06]} 7... Qe7 {[%clk 0:02:58.9]} 8. Bb2 {[%clk 0:03:06.7]} 8...
O-O {[%clk 0:02:56.2]} 9. Qc1 {[%clk 0:03:07.6]} 9... b6 {[%clk 0:02:50.7]} 10.
Ba3 {[%clk 0:03:08.1]} 10... Ne4 {[%clk 0:02:34.3]} 11. Bxd6 {[%clk 0:03:06.9]}
11... Qxd6 {[%clk 0:02:36.2]} 12. Ne5 {[%clk 0:03:00.6]} 12... Nd7 {[%clk
0:02:30.3]} 13. f4 {[%clk 0:03:01.6]} 13... Nxe5 {[%clk 0:02:18.9]} 14. fxe5
{[%clk 0:03:00.6]} 14... Qe7 {[%clk 0:02:19.9]} 15. Nd2 {[%clk 0:02:48]} 15...
Bb7 {[%clk 0:02:20.2]} 16. cxd5 {[%clk 0:01:27.8]} 16... cxd5 {[%clk 0:02:13.3]}
17. Nxe4 {[%clk 0:01:28.7]} 17... fxe4 {[%clk 0:02:04.3]} 18. Be2 {[%clk
0:01:29]} 18... Rxf1+ {[%clk 0:01:55.1]} 19. Bxf1 {[%clk 0:01:27]} 19... Rc8
{[%clk 0:01:53.9]} 20. Qb2 {[%clk 0:01:26.3]} 20... Qc7 {[%clk 0:01:53.5]} 21.
Be2 {[%clk 0:01:13.1]} 21... Qc3 {[%clk 0:01:51.3]} 22. Qxc3 {[%clk 0:01:12.9]}
22... Rxc3 {[%clk 0:01:53.2]} 23. Kf2 {[%clk 0:01:13.6]} 23... a5 {[%clk
0:01:53.5]} 24. Ke1 {[%clk 0:01:10.2]} 24... Kf7 {[%clk 0:01:30.9]} 25. Kd2
{[%clk 0:01:08.7]} 25... Rc8 {[%clk 0:01:32]} 26. Rb1 {[%clk 0:01:04.6]} 26...
Bc6 {[%clk 0:01:08.5]} 27. b4 {[%clk 0:01:01.9]} 27... axb4 {[%clk 0:01:09.6]}
28. Rxb4 {[%clk 0:01:03.7]} 28... Ra8 {[%clk 0:01:09.5]} 29. Rxb6 {[%clk
0:01:01.1]} 29... Rxa2+ {[%clk 0:01:10]} 30. Ke1 {[%clk 0:01:02.2]} 30... Bd7
{[%clk 0:01:03]} 31. Rb7 {[%clk 0:01:02.2]} 31... Ke8 {[%clk 0:01:04.4]} 32.
Bh5+ {[%clk 0:01:02.6]} 32... Ke7 {[%clk 0:01:01.5]} 33. Be2 {[%clk 0:00:59.4]}
33... Ke8 {[%clk 0:00:57.3]} 34. h4 {[%clk 0:00:58.2]} 34... Kd8 {[%clk
0:00:44.8]} 35. Rb8+ {[%clk 0:00:52]} 35... Ke7 {[%clk 0:00:44.7]} 36. Rh8
{[%clk 0:00:52.7]} 36... h6 {[%clk 0:00:45]} 37. Rg8 {[%clk 0:00:51.8]} 37...
Kf7 {[%clk 0:00:43.9]} 38. Rb8 {[%clk 0:00:49]} 38... Ke7 {[%clk 0:00:42.6]} 39.
Rb7 {[%clk 0:00:49]} 39... Kd8 {[%clk 0:00:43.8]} 40. g4 {[%clk 0:00:23.9]}
40... Kc8 {[%clk 0:00:42.3]} 41. Rb1 {[%clk 0:00:16]} 41... Kc7 {[%clk
0:00:36.8]} 42. Rc1+ {[%clk 0:00:16.1]} 42... Kd8 {[%clk 0:00:37.4]} 43. Rb1
{[%clk 0:00:14.4]} 43... Bc8 {[%clk 0:00:34.6]} 44. Rb6 {[%clk 0:00:08.9]} 44...
Kc7 {[%clk 0:00:26.4]} 45. Rd6 {[%clk 0:00:09]} 45... Bd7 {[%clk 0:00:27.2]} 46.
g5 {[%clk 0:00:09.5]} 46... hxg5 {[%clk 0:00:26.9]} 47. hxg5 {[%clk 0:00:11.4]}
47... g6 {[%clk 0:00:27.2]} 48. Ra6 {[%clk 0:00:11.3]} 48... Rxa6 {[%clk
0:00:24.7]} 49. Bxa6 {[%clk 0:00:10.5]} 49... Kb6 {[%clk 0:00:26]} 50. Be2
{[%clk 0:00:11.2]} 50... Ka5 {[%clk 0:00:26.3]} 51. Kd2 {[%clk 0:00:10]} 51...
Kb4 {[%clk 0:00:23.5]} 1/2-1/2

[Event "*** Titled Tuesday Blitz"]
[Site "Chess.com"]
[Date "2018.12.04"]
[Round "2"]
[White "WPWPWP-2015"]
[Black "hypert"]
[Result "1-0"]
[WhiteElo "2275"]
[BlackElo "2370"]
[TimeControl "180+2"]
[EndTime "13:23:22 PST"]
[Termination "WPWPWP-2015 won by checkmate"]

1. e4 {[%clk 0:03:01.1]} 1... c5 {[%clk 0:03:01]} 2. Nf3 {[%clk 0:02:53.8]} 2...
Nc6 {[%clk 0:03:02.4]} 3. d4 {[%clk 0:02:51.8]} 3... cxd4 {[%clk 0:03:04.3]} 4.
Nxd4 {[%clk 0:02:53]} 4... Nf6 {[%clk 0:03:05.9]} 5. Nc3 {[%clk 0:02:53.8]} 5...
d6 {[%clk 0:03:07.3]} 6. Nb3 {[%clk 0:02:51.6]} 6... e6 {[%clk 0:03:03.9]} 7.
Be2 {[%clk 0:02:50.1]} 7... Be7 {[%clk 0:03:05.2]} 8. O-O {[%clk 0:02:50.8]}
8... O-O {[%clk 0:03:06.5]} 9. Be3 {[%clk 0:02:51.2]} 9... Bd7 {[%clk
0:03:03.1]} 10. f4 {[%clk 0:02:51.3]} 10... e5 {[%clk 0:03:04.3]} 11. f5 {[%clk
0:02:51.7]} 11... a5 {[%clk 0:03:04.8]} 12. a4 {[%clk 0:02:45.1]} 12... Nb4
{[%clk 0:03:05.7]} 13. Bf3 {[%clk 0:02:43.3]} 13... Bc6 {[%clk 0:03:06.7]} 14.
Rf2 {[%clk 0:02:28.8]} 14... d5 {[%clk 0:02:43.4]} 15. exd5 {[%clk 0:02:28.3]}
15... Nfxd5 {[%clk 0:02:38.6]} 16. Bxd5 {[%clk 0:02:25.5]} 16... Nxd5 {[%clk
0:02:36.6]} 17. Nxd5 {[%clk 0:01:59.6]} 17... Qxd5 {[%clk 0:02:36.8]} 18. Qxd5
{[%clk 0:01:37.9]} 18... Bxd5 {[%clk 0:02:38.7]} 19. Bc5 {[%clk 0:01:22.2]}
19... Bxc5 {[%clk 0:02:05.7]} 20. Nxc5 {[%clk 0:01:22.7]} 20... Rfd8 {[%clk
0:02:06.8]} 21. Re1 {[%clk 0:01:19.4]} 21... b6 {[%clk 0:01:58]} 22. Nd3 {[%clk
0:01:18]} 22... f6 {[%clk 0:01:58.4]} 23. Re3 {[%clk 0:01:02.1]} 23... Rac8
{[%clk 0:01:56.1]} 24. h3 {[%clk 0:00:54.7]} 24... Rc4 {[%clk 0:01:40.7]} 25. b3
{[%clk 0:00:48.4]} 25... Rc3 {[%clk 0:01:39.9]} 26. Rfe2 {[%clk 0:00:48.9]}
26... Rdc8 {[%clk 0:01:39.7]} 27. Ne1 {[%clk 0:00:49.3]} 27... Kf7 {[%clk
0:01:20.9]} 28. Kf2 {[%clk 0:00:49.7]} 28... Ke7 {[%clk 0:01:21.4]} 29. g4
{[%clk 0:00:49.5]} 29... Bf7 {[%clk 0:01:19.7]} 30. Rxc3 {[%clk 0:00:48.3]}
30... Rxc3 {[%clk 0:01:20.1]} 31. Re3 {[%clk 0:00:49.7]} 31... Rc8 {[%clk
0:01:13.4]} 32. c4 {[%clk 0:00:50.3]} 32... h5 {[%clk 0:01:13.1]} 33. Rd3 {[%clk
0:00:49.2]} 33... hxg4 {[%clk 0:01:12.8]} 34. hxg4 {[%clk 0:00:49.8]} 34... Rh8
{[%clk 0:01:14.4]} 35. Kg2 {[%clk 0:00:48.7]} 35... Be8 {[%clk 0:01:15.6]} 36.
Nc2 {[%clk 0:00:28.7]} 36... Bc6+ {[%clk 0:01:15.9]} 37. Kg3 {[%clk 0:00:30.2]}
37... Rh1 {[%clk 0:01:15.2]} 38. Ne3 {[%clk 0:00:30.7]} 38... Rg1+ {[%clk
0:01:08.9]} 39. Kf2 {[%clk 0:00:30.4]} 39... Rb1 {[%clk 0:01:08.3]} 40. Ke2
{[%clk 0:00:24.7]} 40... Be4 {[%clk 0:01:03.9]} 41. Rc3 {[%clk 0:00:25.3]} 41...
Rb2+ {[%clk 0:01:04.4]} 42. Ke1 {[%clk 0:00:25.7]} 42... Rb1+ {[%clk 0:00:56.5]}
43. Kf2 {[%clk 0:00:26.2]} 43... Kd6 {[%clk 0:00:58]} 44. Nf1 {[%clk 0:00:26.5]}
44... Kc5 {[%clk 0:00:54.6]} 45. Nd2 {[%clk 0:00:27.4]} 45... Rb2 {[%clk
0:00:55.5]} 46. Ke1 {[%clk 0:00:27.6]} 46... Bc2 {[%clk 0:00:47.7]} 47. Rg3
{[%clk 0:00:25.8]} 47... Kb4 {[%clk 0:00:46.4]} 48. g5 {[%clk 0:00:25.5]} 48...
Bxb3 {[%clk 0:00:47.3]} 49. gxf6 {[%clk 0:00:21.8]} 49... gxf6 {[%clk
0:00:47.8]} 50. Rg6 {[%clk 0:00:23.4]} 50... Bxc4 {[%clk 0:00:46.6]} 51. Rxf6
{[%clk 0:00:24.7]} 51... e4 {[%clk 0:00:39.7]} 52. Rxb6+ {[%clk 0:00:17]} 52...
Kc3 {[%clk 0:00:36.5]} 53. Rxb2 {[%clk 0:00:17.9]} 53... Kxb2 {[%clk 0:00:37.8]}
54. Nxc4+ {[%clk 0:00:19.2]} 54... Kb3 {[%clk 0:00:38.4]} 55. f6 {[%clk
0:00:20.2]} 55... Kxa4 {[%clk 0:00:38.6]} 56. f7 {[%clk 0:00:21.7]} 56... Kb3
{[%clk 0:00:40.1]} 57. Ne3 {[%clk 0:00:22.9]} 57... a4 {[%clk 0:00:41.3]} 58.
f8=Q {[%clk 0:00:24]} 58... a3 {[%clk 0:00:43]} 59. Qb8+ {[%clk 0:00:25]} 59...
Ka2 {[%clk 0:00:44.1]} 60. Kd2 {[%clk 0:00:25.7]} 60... Ka1 {[%clk 0:00:45.2]}
61. Kc2 {[%clk 0:00:27.1]} 61... a2 {[%clk 0:00:46.9]} 62. Qb2# {[%clk 0:00:28]}
1-0